Workbook

Sheet Sheet2 (hidden)

Sheet 入力用シート
C2: ①要入力 | F2: ②要入力 | H2: ③要入力 | J2: 非表示！ | K2: 非表示！ | L2: 非表示！ | M2: 非表示！ | N2: 非表示！ | O2: 非表示！ | P2: 非表示！ | Q2: 非表示！ | R2: 非表示！
B3: No | C3: 日付 | D3: 曜日 | E3: 祝日 | F3: 開始時刻 | H3: 終了時刻 | J3: 時間外判別 | K3: 土日祝判定 | L3: 開始時刻 | M3: 終了時刻 | N3: 全分数 | O3: 時間外(m) | P3: 通常(m) | Q3: 時間外(h)ベース | R3: 通常(h)ベース | S3: A 平日 (時間内) | T3: B 土日祝 | U3: C 時間外 | W3: A 平日 (時間内) | X3: B 土日祝 | Y3: C 時間外
B4: =ROW()-4 -> 0 | D4: =IF(C4="","",TEXT(C4,"aaaa")) ->  | E4: =IFERROR(VLOOKUP(C4,祝日判定マスタ!$A:$B,2,FALSE),"") ->  | J4: =IFERROR(IF(AND(VALUE(SUBSTITUTE(F4,"時",""))>=7, VALUE(SUBSTITUTE(F4,"時",""))<=18, VALUE(SUBSTITUTE(H4,"時",""))>=7, VALUE(SUBSTITUTE(H4,"時",""))<=18), "①", IF(AND(VALUE(SUBSTITUTE(F4,"時",""))>=0, VALUE(SUBSTITUTE(F4,"時",""))<=6, VALUE(SUBSTITUTE(H4,"時",""))>=7, VALUE(SUBSTITUTE(H4,"時",""))<=18), "②", IF(AND(VALUE(SUBSTITUTE(F4,"時",""))>=7, VALUE(SUBSTITUTE(F4,"時",""))<=18, VALUE(SUBSTITUTE(H4,"時",""))>=19, VALUE(SUBSTITUTE(H4,"時",""))<=24), "③", IF(AND(VALUE(SUBSTITUTE(F4,"時",""))>=19, VALUE(SUBSTITUTE(F4,"時",""))<=24, VALUE(SUBSTITUTE(H4,"時",""))>=19, VALUE(SUBSTITUTE(H4,"時",""))<=24), "④", IF(AND(VALUE(SUBSTITUTE(F4,"時",""))>=0, VALUE(SUBSTITUTE(F4,"時",""))<=6, VALUE(SUBSTITUTE(H4,"時",""))>=0, VALUE(SUBSTITUTE(H4,"時",""))<=6), "⑤", ""))))),"") ->  | K4: =IF(E4<>"","土日祝",IF(OR(D4="土曜日",D4="日曜日"),"土日祝","")) ->  | L4: =IFERROR(TIME(VALUE(SUBSTITUTE(F4,"時","")), VALUE(SUBSTITUTE(G4,"分","")), 0),"") ->  | M4: =IFERROR(TIME(VALUE(SUBSTITUTE(H4,"時","")),VALUE(SUBSTITUTE(I4,"分","")),0),"") ->  | N4: =IF(OR(M4="",L4=""),"", (M4 - L4) * 1440) ->  | O4: =IFERROR(ROUND( IF( L4>=TIME(7,0,0), 0, MAX( 0, (MIN( M4, L4 + CEILING((TIME(7,0,0)-L4)*24,1)/24 ) - L4 ) * 1440 ) ) + IF( M4<=TIME(19,0,0), 0, MAX( 0, (M4 - MAX( L4 + CEILING((TIME(19,0,0)-L4)*24,1)/24, TIME(19,0,0) ) ) * 1440 ) ), 10),"") ->  | P4: =IF(OR(M4="",L4="",O4=""),"", ROUND((M4 - L4) * 1440 - O4, 10) ) ->  | Q4: =IF(O4="","", _xlfn.LET( _xlpm.m, ROUND(O4,0), _xlpm.h, QUOTIENT(_xlpm.m,60), _xlpm.r, MOD(_xlpm.m,60), _xlpm.h + IF(_xlpm.r=0,0,IF(_xlpm.r<=30,0.5,1)) ) ) ->  | R4: =IF(P4="","", _xlfn.LET( _xlpm.m, ROUND(P4,0), INT(_xlpm.m/60) + IF(MOD(_xlpm.m,60)=0,0,IF(MOD(_xlpm.m,60)<=30,0.5,1)) ) ) ->  | S4: =IF(K4="",R4,"") ->  | T4: =IFERROR(IF(K4="", "", R4),"") ->  | U4: =IF(K4="",Q4,IF(K4<>"",Q4)) ->  | W4: =SUM(#REF!) ->  | X4: =SUM(#REF!) ->  | Y4: =SUM(#REF!) -> 
B5: =ROW()-4 -> 1 | D5: =IF(C5="","",TEXT(C5,"aaaa")) ->  | E5: =IFERROR(VLOOKUP(C5,祝日判定マスタ!$A:$B,2,FALSE),"") ->  | J5: =IFERROR(IF(AND(VALUE(SUBSTITUTE(F5,"時",""))>=7, VALUE(SUBSTITUTE(F5,"時",""))<=18, VALUE(SUBSTITUTE(H5,"時",""))>=7, VALUE(SUBSTITUTE(H5,"時",""))<=18), "①", IF(AND(VALUE(SUBSTITUTE(F5,"時",""))>=0, VALUE(SUBSTITUTE(F5,"時",""))<=6, VALUE(SUBSTITUTE(H5,"時",""))>=7, VALUE(SUBSTITUTE(H5,"時",""))<=18), "②", IF(AND(VALUE(SUBSTITUTE(F5,"時",""))>=7, VALUE(SUBSTITUTE(F5,"時",""))<=18, VALUE(SUBSTITUTE(H5,"時",""))>=19, VALUE(SUBSTITUTE(H5,"時",""))<=24), "③", IF(AND(VALUE(SUBSTITUTE(F5,"時",""))>=19, VALUE(SUBSTITUTE(F5,"時",""))<=24, VALUE(SUBSTITUTE(H5,"時",""))>=19, VALUE(SUBSTITUTE(H5,"時",""))<=24), "④", IF(AND(VALUE(SUBSTITUTE(F5,"時",""))>=0, VALUE(SUBSTITUTE(F5,"時",""))<=6, VALUE(SUBSTITUTE(H5,"時",""))>=0, VALUE(SUBSTITUTE(H5,"時",""))<=6), "⑤", ""))))),"") ->  | K5: =IF(E5<>"","土日祝",IF(OR(D5="土曜日",D5="日曜日"),"土日祝","")) ->  | L5: =IFERROR(TIME(VALUE(SUBSTITUTE(F5,"時","")), VALUE(SUBSTITUTE(G5,"分","")), 0),"") ->  | M5: =IFERROR(TIME(VALUE(SUBSTITUTE(H5,"時","")),VALUE(SUBSTITUTE(I5,"分","")),0),"") ->  | N5: =IF(OR(M5="",L5=""),"", (M5 - L5) * 1440) ->  | O5: =IFERROR(ROUND( IF( L5>=TIME(7,0,0), 0, MAX( 0, (MIN( M5, L5 + CEILING((TIME(7,0,0)-L5)*24,1)/24 ) - L5 ) * 1440 ) ) + IF( M5<=TIME(19,0,0), 0, MAX( 0, (M5 - MAX( L5 + CEILING((TIME(19,0,0)-L5)*24,1)/24, TIME(19,0,0) ) ) * 1440 ) ), 10),"") ->  | P5: =IF(OR(M5="",L5="",O5=""),"", ROUND((M5 - L5) * 1440 - O5, 10) ) ->  | Q5: =IF(O5="","", _xlfn.LET( _xlpm.m, ROUND(O5,0), _xlpm.h, QUOTIENT(_xlpm.m,60), _xlpm.r, MOD(_xlpm.m,60), _xlpm.h + IF(_xlpm.r=0,0,IF(_xlpm.r<=30,0.5,1)) ) ) ->  | R5: =IF(P5="","", _xlfn.LET( _xlpm.m, ROUND(P5,0), INT(_xlpm.m/60) + IF(MOD(_xlpm.m,60)=0,0,IF(MOD(_xlpm.m,60)<=30,0.5,1)) ) ) ->  | S5: =IF(K5="",R5,"") ->  | T5: =IFERROR(IF(K5="", "", R5),"") ->  | U5: =IF(K5="",Q5,IF(K5<>"",Q5)) -> 

Sheet 集計用シート
C3: A 平日 | D3: B 土日祝 | E3: C 時間外
B4: <1905/1/1 | C4: 0 | D4: 0 | E4: 0
B5: 総計 | C5: 0 | D5: 0 | E5: 0

Sheet 単月（あとでコピー) (hidden)
A1: 2026 | C1: ①要入力 | F1: ②要入力 | H1: ③要入力 | J1: 非表示！ | K1: 非表示！ | L1: 非表示！ | M1: 非表示！ | N1: 非表示！ | O1: 非表示！ | P1: 非表示！ | Q1: 非表示！ | R1: 非表示！ | AD1: 0時 | AE1: 0分
C2: 日付 | D2: 曜日 | E2: 祝日 | F2: 開始時刻 | H2: 終了時刻 | J2: 時間外判別 | K2: 土日祝判定 | L2: 開始時刻 | M2: 終了時刻 | N2: 全分数 | O2: 時間外(m) | P2: 通常(m) | Q2: 時間外(h)ベース | R2: 通常(h)ベース | S2: A 平日 (時間内) | T2: B 土日祝 | U2: C 時間外 | AD2: 1時 | AE2: 1分
B3: 1 | C3: 2026-05-01 | D3: =TEXT(C3,"aaaa") -> 金曜日 | E3: =IFERROR(VLOOKUP(C3,祝日判定マスタ!$A:$B,2,FALSE),"") ->  | F3: 4時 | G3: 30分 | H3: 9時 | I3: 9分 | J3: =IFERROR(IF(AND(VALUE(SUBSTITUTE(F3,"時",""))>=7, VALUE(SUBSTITUTE(F3,"時",""))<=18, VALUE(SUBSTITUTE(H3,"時",""))>=7, VALUE(SUBSTITUTE(H3,"時",""))<=18), "①", IF(AND(VALUE(SUBSTITUTE(F3,"時",""))>=0, VALUE(SUBSTITUTE(F3,"時",""))<=6, VALUE(SUBSTITUTE(H3,"時",""))>=7, VALUE(SUBSTITUTE(H3,"時",""))<=18), "②", IF(AND(VALUE(SUBSTITUTE(F3,"時",""))>=7, VALUE(SUBSTITUTE(F3,"時",""))<=18, VALUE(SUBSTITUTE(H3,"時",""))>=19, VALUE(SUBSTITUTE(H3,"時",""))<=24), "③", IF(AND(VALUE(SUBSTITUTE(F3,"時",""))>=19, VALUE(SUBSTITUTE(F3,"時",""))<=24, VALUE(SUBSTITUTE(H3,"時",""))>=19, VALUE(SUBSTITUTE(H3,"時",""))<=24), "④", IF(AND(VALUE(SUBSTITUTE(F3,"時",""))>=0, VALUE(SUBSTITUTE(F3,"時",""))<=6, VALUE(SUBSTITUTE(H3,"時",""))>=0, VALUE(SUBSTITUTE(H3,"時",""))<=6), "⑤", ""))))),"") -> ② | K3: =IF(E3<>"","土日祝",IF(OR(D3="土曜日",D3="日曜日"),"土日祝","")) ->  | L3: =IFERROR(TIME(VALUE(SUBSTITUTE(F3,"時","")), VALUE(SUBSTITUTE(G3,"分","")), 0),"") -> 04:30:00 | M3: =IFERROR(TIME(VALUE(SUBSTITUTE(H3,"時","")),VALUE(SUBSTITUTE(I3,"分","")),0),"") -> 09:09:00 | N3: =IF(OR(M3="",L3=""),"", (M3 - L3) * 1440) -> 279 | O3: =IFERROR(ROUND( IF( L3>=TIME(7,0,0), 0, MAX( 0, (MIN( M3, L3 + CEILING((TIME(7,0,0)-L3)*24,1)/24 ) - L3 ) * 1440 ) ) + IF( M3<=TIME(19,0,0), 0, MAX( 0, (M3 - MAX( L3 + CEILING((TIME(19,0,0)-L3)*24,1)/24, TIME(19,0,0) ) ) * 1440 ) ), 10),"") -> 180 | P3: =IF(OR(M3="",L3="",O3=""),"", ROUND((M3 - L3) * 1440 - O3, 10) ) -> 99 | Q3: =IF(O3="","", _xlfn.LET( _xlpm.m, ROUND(O3,0), _xlpm.h, QUOTIENT(_xlpm.m,60), _xlpm.r, MOD(_xlpm.m,60), _xlpm.h + IF(_xlpm.r=0,0,IF(_xlpm.r<=30,0.5,1)) ) ) -> 3 | R3: =IF(P3="","", _xlfn.LET( _xlpm.m, ROUND(P3,0), INT(_xlpm.m/60) + IF(MOD(_xlpm.m,60)=0,0,IF(MOD(_xlpm.m,60)<=30,0.5,1)) ) ) -> 2 | S3: =IF(K3="",R3,"") -> 2 | T3: =IFERROR(IF(K3="", "", R3),"") ->  | U3: =IF(K3="",Q3,IF(K3<>"",Q3)) -> 3 | AD3: 2時 | AE3: 2分
B4: 2 | C4: 2026-05-01 | D4: =TEXT(C4,"aaaa") -> 金曜日 | E4: =IFERROR(VLOOKUP(C4,祝日判定マスタ!$A:$B,2,FALSE),"") ->  | F4: 8時 | G4: 30分 | H4: 19時 | I4: 30分 | J4: =IFERROR(IF(AND(VALUE(SUBSTITUTE(F4,"時",""))>=7, VALUE(SUBSTITUTE(F4,"時",""))<=18, VALUE(SUBSTITUTE(H4,"時",""))>=7, VALUE(SUBSTITUTE(H4,"時",""))<=18), "①", IF(AND(VALUE(SUBSTITUTE(F4,"時",""))>=0, VALUE(SUBSTITUTE(F4,"時",""))<=6, VALUE(SUBSTITUTE(H4,"時",""))>=7, VALUE(SUBSTITUTE(H4,"時",""))<=18), "②", IF(AND(VALUE(SUBSTITUTE(F4,"時",""))>=7, VALUE(SUBSTITUTE(F4,"時",""))<=18, VALUE(SUBSTITUTE(H4,"時",""))>=19, VALUE(SUBSTITUTE(H4,"時",""))<=24), "③", IF(AND(VALUE(SUBSTITUTE(F4,"時",""))>=19, VALUE(SUBSTITUTE(F4,"時",""))<=24, VALUE(SUBSTITUTE(H4,"時",""))>=19, VALUE(SUBSTITUTE(H4,"時",""))<=24), "④", IF(AND(VALUE(SUBSTITUTE(F4,"時",""))>=0, VALUE(SUBSTITUTE(F4,"時",""))<=6, VALUE(SUBSTITUTE(H4,"時",""))>=0, VALUE(SUBSTITUTE(H4,"時",""))<=6), "⑤", ""))))),"") -> ③ | K4: =IF(E4<>"","土日祝",IF(OR(D4="土曜日",D4="日曜日"),"土日祝","")) ->  | L4: =IFERROR(TIME(VALUE(SUBSTITUTE(F4,"時","")), VALUE(SUBSTITUTE(G4,"分","")), 0),"") -> 08:30:00 | M4: =IFERROR(TIME(VALUE(SUBSTITUTE(H4,"時","")),VALUE(SUBSTITUTE(I4,"分","")),0),"") -> 19:30:00 | N4: =IF(OR(M4="",L4=""),"", (M4 - L4) * 1440) -> 660 | O4: =IFERROR(ROUND( IF( L4>=TIME(7,0,0), 0, MAX( 0, (MIN( M4, L4 + CEILING((TIME(7,0,0)-L4)*24,1)/24 ) - L4 ) * 1440 ) ) + IF( M4<=TIME(19,0,0), 0, MAX( 0, (M4 - MAX( L4 + CEILING((TIME(19,0,0)-L4)*24,1)/24, TIME(19,0,0) ) ) * 1440 ) ), 10),"") -> 0 | P4: =IF(OR(M4="",L4="",O4=""),"", ROUND((M4 - L4) * 1440 - O4, 10) ) -> 660 | Q4: =IF(O4="","", _xlfn.LET( _xlpm.m, ROUND(O4,0), _xlpm.h, QUOTIENT(_xlpm.m,60), _xlpm.r, MOD(_xlpm.m,60), _xlpm.h + IF(_xlpm.r=0,0,IF(_xlpm.r<=30,0.5,1)) ) ) -> 0 | R4: =IF(P4="","", _xlfn.LET( _xlpm.m, ROUND(P4,0), INT(_xlpm.m/60) + IF(MOD(_xlpm.m,60)=0,0,IF(MOD(_xlpm.m,60)<=30,0.5,1)) ) ) -> 11 | S4: =IF(K4="",R4,"") -> 11 | T4: =IFERROR(IF(K4="", "", R4),"") ->  | U4: =IF(K4="",Q4,IF(K4<>"",Q4)) -> 0 | AD4: 3時 | AE4: 3分
B5: 3 | C5: 2026-05-03 | D5: 日曜日 | E5: =IFERROR(VLOOKUP(C5,祝日判定マスタ!$A:$B,2,FALSE),"") -> 憲法記念日 | F5: 5時 | G5: 40分 | H5: 7時 | I5: 20分 | J5: ② | K5: 土日祝 | L5: 05:40:00 | M5: 07:20:00 | N5: 100 | O5: =IFERROR(ROUND( IF( L5>=TIME(7,0,0), 0, MAX( 0, (MIN( M5, L5 + CEILING((TIME(7,0,0)-L5)*24,1)/24 ) - L5 ) * 1440 ) ) + IF( M5<=TIME(19,0,0), 0, MAX( 0, (M5 - MAX( L5 + CEILING((TIME(19,0,0)-L5)*24,1)/24, TIME(19,0,0) ) ) * 1440 ) ), 10),"") -> 100 | P5: =IF(OR(M5="",L5="",O5=""),"", ROUND((M5 - L5) * 1440 - O5, 10) ) -> 0 | Q5: 2 | R5: 0 | T5: =IFERROR(IF(K5="", "", R5),"") -> 0 | U5: =IF(K5="",Q5,IF(K5<>"",Q5)) -> 2 | AD5: 4時 | AE5: 4分
B6: 4 | C6: 2026-05-04 | D6: 月曜日 | E6: =IFERROR(VLOOKUP(C6,祝日判定マスタ!$A:$B,2,FALSE),"") -> みどりの日 | F6: 18時 | G6: 0分 | H6: 22時 | I6: 31分 | J6: ③ | K6: 土日祝 | L6: 18:00:00 | M6: 22:31:00 | N6: 271 | O6: 211 | P6: =IF(OR(M6="",L6="",O6=""),"", ROUND((M6 - L6) * 1440 - O6, 10) ) -> 60 | Q6: 4 | R6: 1 | T6: =IFERROR(IF(K6="", "", R6),"") -> 1 | U6: 4 | AD6: 5時 | AE6: 5分
B7: 5 | C7: 2026-05-05 | D7: 火曜日 | E7: =IFERROR(VLOOKUP(C7,祝日判定マスタ!$A:$B,2,FALSE),"") -> こどもの日 | K7: 土日祝 | AD7: 6時 | AE7: 6分
B8: 6 | C8: 2026-05-06 | D8: 水曜日 | E8: =IFERROR(VLOOKUP(C8,祝日判定マスタ!$A:$B,2,FALSE),"") -> 振替休日 | K8: 土日祝 | AD8: 7時 | AE8: 7分
B9: 7 | C9: 2026-05-07 | D9: 木曜日 | E9: =IFERROR(VLOOKUP(C9,祝日判定マスタ!$A:$B,2,FALSE),"") ->  | F9: 18時 | G9: 0分 | H9: 22時 | I9: 31分 | J9: ③ | L9: 18:00:00 | M9: 22:31:00 | N9: 271 | O9: 211 | P9: 60 | Q9: 4 | R9: 1 | S9: 1 | U9: 4 | AD9: 8時 | AE9: 8分
B10: 8 | C10: 2026-05-08 | D10: 金曜日 | E10: =IFERROR(VLOOKUP(C10,祝日判定マスタ!$A:$B,2,FALSE),"") ->  | AD10: 9時 | AE10: 9分
B11: 9 | C11: 2026-05-09 | D11: 土曜日 | E11: =IFERROR(VLOOKUP(C11,祝日判定マスタ!$A:$B,2,FALSE),"") ->  | K11: 土日祝 | AD11: 10時 | AE11: 10分
B12: 10 | C12: 2026-05-10 | D12: 日曜日 | E12: =IFERROR(VLOOKUP(C12,祝日判定マスタ!$A:$B,2,FALSE),"") ->  | K12: 土日祝 | AD12: 11時 | AE12: 11分
B13: 11 | C13: 2026-05-11 | D13: 月曜日 | E13: =IFERROR(VLOOKUP(C13,祝日判定マスタ!$A:$B,2,FALSE),"") ->  | AD13: 12時 | AE13: 12分
B14: 12 | C14: 2026-05-12 | D14: 火曜日 | E14: =IFERROR(VLOOKUP(C14,祝日判定マスタ!$A:$B,2,FALSE),"") ->  | AD14: 13時 | AE14: 13分
B15: 13 | C15: 2026-05-13 | D15: 水曜日 | E15: =IFERROR(VLOOKUP(C15,祝日判定マスタ!$A:$B,2,FALSE),"") ->  | AD15: 14時 | AE15: 14分
B16: 14 | C16: 2026-05-14 | D16: 木曜日 | E16: =IFERROR(VLOOKUP(C16,祝日判定マスタ!$A:$B,2,FALSE),"") ->  | AD16: 15時 | AE16: 15分
B17: 15 | C17: 2026-05-15 | D17: 金曜日 | E17: =IFERROR(VLOOKUP(C17,祝日判定マスタ!$A:$B,2,FALSE),"") ->  | AD17: 16時 | AE17: 16分
B18: 16 | C18: 2026-05-16 | D18: 土曜日 | E18: =IFERROR(VLOOKUP(C18,祝日判定マスタ!$A:$B,2,FALSE),"") ->  | K18: 土日祝 | AD18: 17時 | AE18: 17分
B19: 17 | C19: 2026-05-17 | D19: 日曜日 | E19: =IFERROR(VLOOKUP(C19,祝日判定マスタ!$A:$B,2,FALSE),"") ->  | K19: 土日祝 | AD19: 18時 | AE19: 18分
B20: 18 | C20: 2026-05-18 | D20: 月曜日 | E20: =IFERROR(VLOOKUP(C20,祝日判定マスタ!$A:$B,2,FALSE),"") ->  | AD20: 19時 | AE20: 19分
B21: 19 | C21: 2026-05-19 | D21: 火曜日 | E21: =IFERROR(VLOOKUP(C21,祝日判定マスタ!$A:$B,2,FALSE),"") ->  | AD21: 20時 | AE21: 20分
B22: 20 | C22: 2026-05-20 | D22: 水曜日 | E22: =IFERROR(VLOOKUP(C22,祝日判定マスタ!$A:$B,2,FALSE),"") ->  | AD22: 21時 | AE22: 21分
B23: 21 | C23: 2026-05-21 | D23: 木曜日 | E23: =IFERROR(VLOOKUP(C23,祝日判定マスタ!$A:$B,2,FALSE),"") ->  | AD23: 22時 | AE23: 22分
B24: 22 | C24: 2026-05-22 | D24: 金曜日 | E24: =IFERROR(VLOOKUP(C24,祝日判定マスタ!$A:$B,2,FALSE),"") ->  | AD24: 23時 | AE24: 23分
B25: 23 | C25: 2026-05-23 | D25: 土曜日 | E25: =IFERROR(VLOOKUP(C25,祝日判定マスタ!$A:$B,2,FALSE),"") ->  | K25: 土日祝 | AE25: 24分
B26: 24 | C26: 2026-05-24 | D26: 日曜日 | E26: =IFERROR(VLOOKUP(C26,祝日判定マスタ!$A:$B,2,FALSE),"") ->  | K26: 土日祝 | AE26: 25分
B27: 25 | C27: 2026-05-25 | D27: 月曜日 | E27: =IFERROR(VLOOKUP(C27,祝日判定マスタ!$A:$B,2,FALSE),"") ->  | AE27: 26分
B28: 26 | C28: 2026-05-26 | D28: 火曜日 | E28: =IFERROR(VLOOKUP(C28,祝日判定マスタ!$A:$B,2,FALSE),"") ->  | AE28: 27分
B29: 27 | C29: 2026-05-27 | D29: 水曜日 | E29: =IFERROR(VLOOKUP(C29,祝日判定マスタ!$A:$B,2,FALSE),"") ->  | AE29: 28分
B30: 28 | C30: 2026-05-28 | D30: 木曜日 | E30: =IFERROR(VLOOKUP(C30,祝日判定マスタ!$A:$B,2,FALSE),"") ->  | AE30: 29分
B31: 29 | C31: 2026-05-29 | D31: 金曜日 | E31: =IFERROR(VLOOKUP(C31,祝日判定マスタ!$A:$B,2,FALSE),"") ->  | AE31: 30分
B32: 30 | C32: 2026-05-30 | D32: 土曜日 | E32: =IFERROR(VLOOKUP(C32,祝日判定マスタ!$A:$B,2,FALSE),"") ->  | K32: 土日祝 | AE32: 31分
B33: 31 | C33: 2026-05-31 | D33: 日曜日 | E33: =IFERROR(VLOOKUP(C33,祝日判定マスタ!$A:$B,2,FALSE),"") ->  | K33: 土日祝 | U33: =IF(K33="",Q33,IF(K33<>"",R33)) ->  | AE33: 32分
B34: 合計 | S34: =SUM(S3:S33) -> 14 | T34: =SUM(T3:T33) -> 1 | U34: =SUM(U3:U33) -> 13 | AE34: 33分
AE35: 34分
AE36: 35分
AE37: 36分
AE38: 37分
AE39: 38分
AE40: 39分
AE41: 40分
AE42: 41分
AE43: 42分
AE44: 43分
AE45: 44分
AE46: 45分
AE47: 46分
AE48: 47分
AE49: 48分
AE50: 49分
AE51: 50分
AE52: 51分
AE53: 52分
AE54: 53分
AE55: 54分
AE56: 55分
AE57: 56分
AE58: 57分
AE59: 58分
AE60: 59分

Sheet 単月（あとで月数分コピー） (hidden)
A1: 2026 | J1: 非表示！ | K1: 非表示！ | L1: 非表示！ | M1: 非表示！ | N1: 非表示！ | O1: 非表示！ | P1: 非表示！ | Q1: 非表示！ | R1: 非表示！ | AD1: 0時 | AE1: 0分
C2: 日付 | D2: 曜日 | E2: 祝日 | F2: 開始時刻 | H2: 終了時刻 | J2: 時間外判別 | K2: 土日祝判定 | L2: 開始時刻 | M2: 終了時刻 | N2: 全分数 | O2: 時間外(m) | P2: 通常(m) | Q2: 時間外(h)ベース | R2: 通常(h)ベース | S2: A 平日 (時間内) | T2: B 土日祝 | U2: C 時間外 | AD2: 1時 | AE2: 1分
B3: 1 | C3: 2026-05-01 | D3: =TEXT(C3,"aaaa") -> 金曜日 | E3: =IFERROR(VLOOKUP(C3,祝日判定マスタ!$A:$B,2,FALSE),"") ->  | F3: 17時 | G3: 30分 | H3: 21時 | I3: 0分 | J3: =IFERROR(IF(AND(VALUE(SUBSTITUTE(F3,"時",""))>=7, VALUE(SUBSTITUTE(F3,"時",""))<=18, VALUE(SUBSTITUTE(H3,"時",""))>=7, VALUE(SUBSTITUTE(H3,"時",""))<=18), "①", IF(AND(VALUE(SUBSTITUTE(F3,"時",""))>=0, VALUE(SUBSTITUTE(F3,"時",""))<=6, VALUE(SUBSTITUTE(H3,"時",""))>=7, VALUE(SUBSTITUTE(H3,"時",""))<=18), "②", IF(AND(VALUE(SUBSTITUTE(F3,"時",""))>=7, VALUE(SUBSTITUTE(F3,"時",""))<=18, VALUE(SUBSTITUTE(H3,"時",""))>=19, VALUE(SUBSTITUTE(H3,"時",""))<=24), "③", IF(AND(VALUE(SUBSTITUTE(F3,"時",""))>=19, VALUE(SUBSTITUTE(F3,"時",""))<=24, VALUE(SUBSTITUTE(H3,"時",""))>=19, VALUE(SUBSTITUTE(H3,"時",""))<=24), "④", IF(AND(VALUE(SUBSTITUTE(F3,"時",""))>=0, VALUE(SUBSTITUTE(F3,"時",""))<=6, VALUE(SUBSTITUTE(H3,"時",""))>=0, VALUE(SUBSTITUTE(H3,"時",""))<=6), "⑤", ""))))),"") -> ③ | K3: =IF(E3<>"","土日祝",IF(OR(D3="土曜日",D3="日曜日"),"土日祝","")) ->  | L3: =IFERROR(TIME(VALUE(SUBSTITUTE(F3,"時","")), VALUE(SUBSTITUTE(G3,"分","")), 0),"") -> 17:30:00 | M3: =IFERROR(TIME(VALUE(SUBSTITUTE(H3,"時","")),VALUE(SUBSTITUTE(I3,"分","")),0),"") -> 21:00:00 | N3: =IF(OR(M3="",L3=""),"", (M3 - L3) * 1440) -> 210 | O3: =IFERROR(ROUND( IF( L3>=TIME(7,0,0), 0, MAX( 0, (MIN( M3, L3 + CEILING((TIME(7,0,0)-L3)*24,1)/24 ) - L3 ) * 1440 ) ) + IF( M3<=TIME(19,0,0), 0, MAX( 0, (M3 - MAX( L3 + CEILING((TIME(19,0,0)-L3)*24,1)/24, TIME(19,0,0) ) ) * 1440 ) ), 10),"") -> 90 | P3: =IF(OR(M3="",L3="",O3=""),"", ROUND((M3 - L3) * 1440 - O3, 10) ) -> 120 | Q3: =IF(O3="","", _xlfn.LET( _xlpm.m, ROUND(O3,0), _xlpm.h, QUOTIENT(_xlpm.m,60), _xlpm.r, MOD(_xlpm.m,60), _xlpm.h + IF(_xlpm.r=0,0,IF(_xlpm.r<=30,0.5,1)) ) ) -> 1.5 | R3: =IF(P3="","", _xlfn.LET( _xlpm.m, ROUND(P3,0), INT(_xlpm.m/60) + IF(MOD(_xlpm.m,60)=0,0,IF(MOD(_xlpm.m,60)<=30,0.5,1)) ) ) -> 2 | S3: =IF(K3="",R3,"") -> 2 | T3: =IFERROR(IF(K3="", "", R3),"") ->  | U3: =IF(K3="",Q3,IF(K3<>"",Q3)) -> 1.5 | AD3: 2時 | AE3: 2分
B4: 2 | C4: 2026-05-02 | D4: =TEXT(C4,"aaaa") -> 土曜日 | E4: =IFERROR(VLOOKUP(C4,祝日判定マスタ!$A:$B,2,FALSE),"") ->  | F4: 17時 | G4: 30分 | H4: 21時 | I4: 0分 | J4: =IFERROR(IF(AND(VALUE(SUBSTITUTE(F4,"時",""))>=7, VALUE(SUBSTITUTE(F4,"時",""))<=18, VALUE(SUBSTITUTE(H4,"時",""))>=7, VALUE(SUBSTITUTE(H4,"時",""))<=18), "①", IF(AND(VALUE(SUBSTITUTE(F4,"時",""))>=0, VALUE(SUBSTITUTE(F4,"時",""))<=6, VALUE(SUBSTITUTE(H4,"時",""))>=7, VALUE(SUBSTITUTE(H4,"時",""))<=18), "②", IF(AND(VALUE(SUBSTITUTE(F4,"時",""))>=7, VALUE(SUBSTITUTE(F4,"時",""))<=18, VALUE(SUBSTITUTE(H4,"時",""))>=19, VALUE(SUBSTITUTE(H4,"時",""))<=24), "③", IF(AND(VALUE(SUBSTITUTE(F4,"時",""))>=19, VALUE(SUBSTITUTE(F4,"時",""))<=24, VALUE(SUBSTITUTE(H4,"時",""))>=19, VALUE(SUBSTITUTE(H4,"時",""))<=24), "④", IF(AND(VALUE(SUBSTITUTE(F4,"時",""))>=0, VALUE(SUBSTITUTE(F4,"時",""))<=6, VALUE(SUBSTITUTE(H4,"時",""))>=0, VALUE(SUBSTITUTE(H4,"時",""))<=6), "⑤", ""))))),"") -> ③ | K4: =IF(E4<>"","土日祝",IF(OR(D4="土曜日",D4="日曜日"),"土日祝","")) -> 土日祝 | L4: =IFERROR(TIME(VALUE(SUBSTITUTE(F4,"時","")), VALUE(SUBSTITUTE(G4,"分","")), 0),"") -> 17:30:00 | M4: =IFERROR(TIME(VALUE(SUBSTITUTE(H4,"時","")),VALUE(SUBSTITUTE(I4,"分","")),0),"") -> 21:00:00 | N4: =IF(OR(M4="",L4=""),"", (M4 - L4) * 1440) -> 210 | O4: =IFERROR(ROUND( IF( L4>=TIME(7,0,0), 0, MAX( 0, (MIN( M4, L4 + CEILING((TIME(7,0,0)-L4)*24,1)/24 ) - L4 ) * 1440 ) ) + IF( M4<=TIME(19,0,0), 0, MAX( 0, (M4 - MAX( L4 + CEILING((TIME(19,0,0)-L4)*24,1)/24, TIME(19,0,0) ) ) * 1440 ) ), 10),"") -> 90 | P4: =IF(OR(M4="",L4="",O4=""),"", ROUND((M4 - L4) * 1440 - O4, 10) ) -> 120 | Q4: =IF(O4="","", _xlfn.LET( _xlpm.m, ROUND(O4,0), _xlpm.h, QUOTIENT(_xlpm.m,60), _xlpm.r, MOD(_xlpm.m,60), _xlpm.h + IF(_xlpm.r=0,0,IF(_xlpm.r<=30,0.5,1)) ) ) -> 1.5 | R4: =IF(P4="","", _xlfn.LET( _xlpm.m, ROUND(P4,0), INT(_xlpm.m/60) + IF(MOD(_xlpm.m,60)=0,0,IF(MOD(_xlpm.m,60)<=30,0.5,1)) ) ) -> 2 | S4: =IF(K4="",R4,"") ->  | T4: =IFERROR(IF(K4="", "", R4),"") -> 2 | U4: =IF(K4="",Q4,IF(K4<>"",Q4)) -> 1.5 | AD4: 3時 | AE4: 3分
B5: 3 | C5: 2026-05-03 | D5: 日曜日 | E5: =IFERROR(VLOOKUP(C5,祝日判定マスタ!$A:$B,2,FALSE),"") -> 憲法記念日 | F5: 5時 | G5: 40分 | H5: 7時 | I5: 20分 | J5: ② | K5: 土日祝 | L5: 05:40:00 | M5: 07:20:00 | N5: 100 | O5: =IFERROR(ROUND( IF( L5>=TIME(7,0,0), 0, MAX( 0, (MIN( M5, L5 + CEILING((TIME(7,0,0)-L5)*24,1)/24 ) - L5 ) * 1440 ) ) + IF( M5<=TIME(19,0,0), 0, MAX( 0, (M5 - MAX( L5 + CEILING((TIME(19,0,0)-L5)*24,1)/24, TIME(19,0,0) ) ) * 1440 ) ), 10),"") -> 100 | P5: =IF(OR(M5="",L5="",O5=""),"", ROUND((M5 - L5) * 1440 - O5, 10) ) -> 0 | Q5: 2 | R5: 0 | T5: =IFERROR(IF(K5="", "", R5),"") -> 0 | U5: =IF(K5="",Q5,IF(K5<>"",Q5)) -> 2 | AD5: 4時 | AE5: 4分
B6: 4 | C6: 2026-05-04 | D6: 月曜日 | E6: =IFERROR(VLOOKUP(C6,祝日判定マスタ!$A:$B,2,FALSE),"") -> みどりの日 | K6: 土日祝 | P6: =IF(OR(M6="",L6="",O6=""),"", ROUND((M6 - L6) * 1440 - O6, 10) ) ->  | AD6: 5時 | AE6: 5分
B7: 5 | C7: 2026-05-05 | D7: 火曜日 | E7: =IFERROR(VLOOKUP(C7,祝日判定マスタ!$A:$B,2,FALSE),"") -> こどもの日 | K7: 土日祝 | AD7: 6時 | AE7: 6分
B8: 6 | C8: 2026-05-06 | D8: =TEXT(C8,"aaaa") -> 水曜日 | E8: =IFERROR(VLOOKUP(C8,祝日判定マスタ!$A:$B,2,FALSE),"") -> 振替休日 | K8: 土日祝 | AD8: 7時 | AE8: 7分
B9: 7 | C9: 2026-05-07 | D9: 木曜日 | E9: =IFERROR(VLOOKUP(C9,祝日判定マスタ!$A:$B,2,FALSE),"") ->  | F9: 5時 | G9: 40分 | H9: 7時 | I9: 20分 | J9: ② | L9: 05:40:00 | M9: 07:20:00 | N9: 100 | O9: 100 | P9: 0 | Q9: 2 | R9: 0 | S9: 0 | U9: 2 | AD9: 8時 | AE9: 8分
B10: 8 | C10: 2026-05-08 | D10: 金曜日 | E10: =IFERROR(VLOOKUP(C10,祝日判定マスタ!$A:$B,2,FALSE),"") ->  | AD10: 9時 | AE10: 9分
B11: 9 | C11: 2026-05-09 | D11: 土曜日 | E11: =IFERROR(VLOOKUP(C11,祝日判定マスタ!$A:$B,2,FALSE),"") ->  | K11: 土日祝 | AD11: 10時 | AE11: 10分
B12: 10 | C12: 2026-05-10 | D12: 日曜日 | E12: =IFERROR(VLOOKUP(C12,祝日判定マスタ!$A:$B,2,FALSE),"") ->  | F12: 6時 | G12: 40分 | H12: 8時 | I12: 0分 | J12: ② | K12: 土日祝 | L12: 06:40:00 | M12: 08:00:00 | N12: 80 | O12: 60 | P12: 20 | Q12: 1 | R12: 0.5 | T12: 0.5 | U12: 1 | AD12: 11時 | AE12: 11分
B13: 11 | C13: 2026-05-11 | D13: 月曜日 | E13: =IFERROR(VLOOKUP(C13,祝日判定マスタ!$A:$B,2,FALSE),"") ->  | F13: 6時 | G13: 40分 | H13: 8時 | I13: 0分 | J13: ② | L13: 06:40:00 | M13: 08:00:00 | N13: 80 | O13: 60 | P13: 20 | Q13: 1 | R13: 0.5 | S13: 0.5 | U13: 1 | AD13: 12時 | AE13: 12分
B14: 12 | C14: 2026-05-12 | D14: 火曜日 | E14: =IFERROR(VLOOKUP(C14,祝日判定マスタ!$A:$B,2,FALSE),"") ->  | AD14: 13時 | AE14: 13分
B15: 13 | C15: 2026-05-13 | D15: 水曜日 | E15: =IFERROR(VLOOKUP(C15,祝日判定マスタ!$A:$B,2,FALSE),"") ->  | AD15: 14時 | AE15: 14分
B16: 14 | C16: 2026-05-14 | D16: 木曜日 | E16: =IFERROR(VLOOKUP(C16,祝日判定マスタ!$A:$B,2,FALSE),"") ->  | AD16: 15時 | AE16: 15分
B17: 15 | C17: 2026-05-15 | D17: 金曜日 | E17: =IFERROR(VLOOKUP(C17,祝日判定マスタ!$A:$B,2,FALSE),"") ->  | AD17: 16時 | AE17: 16分
B18: 16 | C18: 2026-05-16 | D18: 土曜日 | E18: =IFERROR(VLOOKUP(C18,祝日判定マスタ!$A:$B,2,FALSE),"") ->  | K18: 土日祝 | AD18: 17時 | AE18: 17分
B19: 17 | C19: 2026-05-17 | D19: =TEXT(C19,"aaaa") -> 日曜日 | E19: =IFERROR(VLOOKUP(C19,祝日判定マスタ!$A:$B,2,FALSE),"") ->  | K19: 土日祝 | AD19: 18時 | AE19: 18分
B20: 18 | C20: 2026-05-18 | D20: 月曜日 | E20: =IFERROR(VLOOKUP(C20,祝日判定マスタ!$A:$B,2,FALSE),"") ->  | AD20: 19時 | AE20: 19分
B21: 19 | C21: 2026-05-19 | D21: 火曜日 | E21: =IFERROR(VLOOKUP(C21,祝日判定マスタ!$A:$B,2,FALSE),"") ->  | AD21: 20時 | AE21: 20分
B22: 20 | C22: 2026-05-20 | D22: 水曜日 | E22: =IFERROR(VLOOKUP(C22,祝日判定マスタ!$A:$B,2,FALSE),"") ->  | AD22: 21時 | AE22: 21分
B23: 21 | C23: 2026-05-21 | D23: =TEXT(C23,"aaaa") -> 木曜日 | E23: =IFERROR(VLOOKUP(C23,祝日判定マスタ!$A:$B,2,FALSE),"") ->  | AD23: 22時 | AE23: 22分
B24: 22 | C24: 2026-05-22 | D24: 金曜日 | E24: =IFERROR(VLOOKUP(C24,祝日判定マスタ!$A:$B,2,FALSE),"") ->  | AD24: 23時 | AE24: 23分
B25: 23 | C25: 2026-05-23 | D25: 土曜日 | E25: =IFERROR(VLOOKUP(C25,祝日判定マスタ!$A:$B,2,FALSE),"") ->  | K25: 土日祝 | AE25: 24分
B26: 24 | C26: 2026-05-24 | D26: 日曜日 | E26: =IFERROR(VLOOKUP(C26,祝日判定マスタ!$A:$B,2,FALSE),"") ->  | K26: 土日祝 | AE26: 25分
B27: 25 | C27: 2026-05-25 | D27: 月曜日 | E27: =IFERROR(VLOOKUP(C27,祝日判定マスタ!$A:$B,2,FALSE),"") ->  | AE27: 26分
B28: 26 | C28: 2026-05-26 | D28: 火曜日 | E28: =IFERROR(VLOOKUP(C28,祝日判定マスタ!$A:$B,2,FALSE),"") ->  | AE28: 27分
B29: 27 | C29: 2026-05-27 | D29: 水曜日 | E29: =IFERROR(VLOOKUP(C29,祝日判定マスタ!$A:$B,2,FALSE),"") ->  | AE29: 28分
B30: 28 | C30: 2026-05-28 | D30: 木曜日 | E30: =IFERROR(VLOOKUP(C30,祝日判定マスタ!$A:$B,2,FALSE),"") ->  | AE30: 29分
B31: 29 | C31: 2026-05-29 | D31: 金曜日 | E31: =IFERROR(VLOOKUP(C31,祝日判定マスタ!$A:$B,2,FALSE),"") ->  | AE31: 30分
B32: 30 | C32: 2026-05-30 | D32: 土曜日 | E32: =IFERROR(VLOOKUP(C32,祝日判定マスタ!$A:$B,2,FALSE),"") ->  | K32: 土日祝 | AE32: 31分
B33: 31 | C33: 2026-05-31 | D33: 日曜日 | E33: =IFERROR(VLOOKUP(C33,祝日判定マスタ!$A:$B,2,FALSE),"") ->  | K33: 土日祝 | U33: =IF(K33="",Q33,IF(K33<>"",R33)) ->  | AE33: 32分
B34: 合計 | S34: =SUM(S3:S33) -> 2.5 | T34: =SUM(T3:T33) -> 2.5 | U34: =SUM(U3:U33) -> 9 | AE34: 33分
AE35: 34分
AE36: 35分
AE37: 36分
AE38: 37分
AE39: 38分
AE40: 39分
AE41: 40分
AE42: 41分
AE43: 42分
AE44: 43分
AE45: 44分
AE46: 45分
AE47: 46分
AE48: 47分
AE49: 48分
AE50: 49分
AE51: 50分
AE52: 51分
AE53: 52分
AE54: 53分
AE55: 54分

Sheet テスト (hidden)
A1: 2026 | L1: 数式 | AD1: 0時 | AE1: 0分
C2: 日付 | D2: 曜日 | E2: 祝日 | F2: 開始時刻 | H2: 終了時刻 | J2: 時間外判別PTN | K2: 土日祝日判定 | L2: 開始時刻 | M2: 終了時刻 | N2: 全体の分数 | O2: 時間外枠(分) | P2: 通常枠(分) | Q2: 時間外（時間） | R2: 通常（時間） | AD2: 1時 | AE2: 1分
B3: 1 | C3: 2026-07-09 | D3: =TEXT(C3,"aaaa") -> 木曜日 | E3: =IFERROR(VLOOKUP(C3,祝日判定マスタ!$A:$B,2,FALSE),"") ->  | F3: 6時 | G3: 0分 | H3: 6時 | I3: 14分 | J3: =IF(AND(VALUE(SUBSTITUTE(F3,"時",""))>=7, VALUE(SUBSTITUTE(F3,"時",""))<=18, VALUE(SUBSTITUTE(H3,"時",""))>=7, VALUE(SUBSTITUTE(H3,"時",""))<=18), "①", IF(AND(VALUE(SUBSTITUTE(F3,"時",""))>=0, VALUE(SUBSTITUTE(F3,"時",""))<=6, VALUE(SUBSTITUTE(H3,"時",""))>=7, VALUE(SUBSTITUTE(H3,"時",""))<=18), "②", IF(AND(VALUE(SUBSTITUTE(F3,"時",""))>=7, VALUE(SUBSTITUTE(F3,"時",""))<=18, VALUE(SUBSTITUTE(H3,"時",""))>=19, VALUE(SUBSTITUTE(H3,"時",""))<=24), "③", IF(AND(VALUE(SUBSTITUTE(F3,"時",""))>=19, VALUE(SUBSTITUTE(F3,"時",""))<=24, VALUE(SUBSTITUTE(H3,"時",""))>=19, VALUE(SUBSTITUTE(H3,"時",""))<=24), "④", IF(AND(VALUE(SUBSTITUTE(F3,"時",""))>=0, VALUE(SUBSTITUTE(F3,"時",""))<=6, VALUE(SUBSTITUTE(H3,"時",""))>=0, VALUE(SUBSTITUTE(H3,"時",""))<=6), "⑤", ""))))) -> ⑤ | K3: =IF(E3<>"","土日祝",IF(OR(D2="土曜日",D2="日曜日"),"土日祝","")) ->  | L3: =TIME(VALUE(SUBSTITUTE(F3,"時","")), VALUE(SUBSTITUTE(G3,"分","")), 0) -> 06:00:00 | M3: =TIME(VALUE(SUBSTITUTE(H3,"時","")), VALUE(SUBSTITUTE(I3,"分","")), 0) -> 06:14:00 | N3: =(M3 - L3) * 1440 -> 14 | O3: =IF( L3>=TIME(7,0,0), 0, MAX( 0, (MIN( M3, L3 + CEILING((TIME(7,0,0)-L3)*24,1)/24 ) - L3 ) * 1440 ) ) + IF( M3<=TIME(19,0,0), 0, MAX( 0, (M3 - MAX( L3 + CEILING((TIME(19,0,0)-L3)*24,1)/24, TIME(19,0,0) ) ) * 1440 ) ) -> 14 | P3: =(M3 - L3) * 1440 - O3 -> 0 | Q3: =_xlfn.LET( _xlpm.m, ROUND(O3,0), _xlpm.h, QUOTIENT(_xlpm.m,60), _xlpm.r, MOD(_xlpm.m,60), _xlpm.h + IF(_xlpm.r=0,0,IF(_xlpm.r<=30,0.5,1)) ) -> 0.5 | R3: =_xlfn.LET( _xlpm.m, ROUND(P3,0), INT(_xlpm.m/60) + IF(MOD(_xlpm.m,60)=0,0,IF(MOD(_xlpm.m,60)<=30,0.5,1)) ) -> 0 | AD3: 2時 | AE3: 2分
B4: 2 | C4: 2026-07-20 | D4: =TEXT(C4,"aaaa") -> 月曜日 | E4: =IFERROR(VLOOKUP(C4,祝日判定マスタ!$A:$B,2,FALSE),"") -> 海の日 | F4: 17時 | G4: 30分 | H4: 21時 | I4: 0分 | J4: =IF(AND(VALUE(SUBSTITUTE(F4,"時",""))>=7, VALUE(SUBSTITUTE(F4,"時",""))<=18, VALUE(SUBSTITUTE(H4,"時",""))>=7, VALUE(SUBSTITUTE(H4,"時",""))<=18), "①", IF(AND(VALUE(SUBSTITUTE(F4,"時",""))>=0, VALUE(SUBSTITUTE(F4,"時",""))<=6, VALUE(SUBSTITUTE(H4,"時",""))>=7, VALUE(SUBSTITUTE(H4,"時",""))<=18), "②", IF(AND(VALUE(SUBSTITUTE(F4,"時",""))>=7, VALUE(SUBSTITUTE(F4,"時",""))<=18, VALUE(SUBSTITUTE(H4,"時",""))>=19, VALUE(SUBSTITUTE(H4,"時",""))<=24), "③", IF(AND(VALUE(SUBSTITUTE(F4,"時",""))>=19, VALUE(SUBSTITUTE(F4,"時",""))<=24, VALUE(SUBSTITUTE(H4,"時",""))>=19, VALUE(SUBSTITUTE(H4,"時",""))<=24), "④", IF(AND(VALUE(SUBSTITUTE(F4,"時",""))>=0, VALUE(SUBSTITUTE(F4,"時",""))<=6, VALUE(SUBSTITUTE(H4,"時",""))>=0, VALUE(SUBSTITUTE(H4,"時",""))<=6), "⑤", ""))))) -> ③ | K4: =IF(E4<>"","土日祝",IF(OR(D3="土曜日",D3="日曜日"),"土日祝","")) -> 土日祝 | L4: =TIME(VALUE(SUBSTITUTE(F4,"時","")), VALUE(SUBSTITUTE(G4,"分","")), 0) -> 17:30:00 | M4: =TIME(VALUE(SUBSTITUTE(H4,"時","")), VALUE(SUBSTITUTE(I4,"分","")), 0) -> 21:00:00 | N4: =(M4 - L4) * 1440 -> 210 | O4: =IF( L4>=TIME(7,0,0), 0, MAX( 0, (MIN( M4, L4 + CEILING((TIME(7,0,0)-L4)*24,1)/24 ) - L4 ) * 1440 ) ) + IF( M4<=TIME(19,0,0), 0, MAX( 0, (M4 - MAX( L4 + CEILING((TIME(19,0,0)-L4)*24,1)/24, TIME(19,0,0) ) ) * 1440 ) ) -> 90 | P4: =(M4 - L4) * 1440 - O4 -> 120 | Q4: =_xlfn.LET( _xlpm.m, ROUND(O4,0), _xlpm.h, QUOTIENT(_xlpm.m,60), _xlpm.r, MOD(_xlpm.m,60), _xlpm.h + IF(_xlpm.r=0,0,IF(_xlpm.r<=30,0.5,1)) ) -> 1.5 | R4: =_xlfn.LET( _xlpm.m, ROUND(P4,0), INT(_xlpm.m/60) + IF(MOD(_xlpm.m,60)=0,0,IF(MOD(_xlpm.m,60)<=30,0.5,1)) ) -> 2 | AD4: 3時 | AE4: 3分
B5: 3 | C5: 2026-07-11 | D5: 土曜日 | E5: =IFERROR(VLOOKUP(C5,祝日判定マスタ!$A:$B,2,FALSE),"") ->  | F5: 5時 | G5: 40分 | H5: 7時 | I5: 20分 | J5: ② | K5: =IF(E5<>"","土日祝",IF(OR(D4="土曜日",D4="日曜日"),"土日祝","")) ->  | L5: =TIME(VALUE(SUBSTITUTE(F5,"時","")), VALUE(SUBSTITUTE(G5,"分","")), 0) -> 05:40:00 | M5: =TIME(VALUE(SUBSTITUTE(H5,"時","")), VALUE(SUBSTITUTE(I5,"分","")), 0) -> 07:20:00 | N5: 100 | O5: 100 | P5: 0 | Q5: 2 | R5: 0 | AD5: 4時 | AE5: 4分
B6: 4 | C6: 2026-07-12 | D6: 日曜日 | E6: =IFERROR(VLOOKUP(C6,祝日判定マスタ!$A:$B,2,FALSE),"") ->  | F6: 18時 | G6: 50分 | H6: 20時 | I6: 30分 | J6: =IF(AND(VALUE(SUBSTITUTE(F6,"時",""))>=7, VALUE(SUBSTITUTE(F6,"時",""))<=18, VALUE(SUBSTITUTE(H6,"時",""))>=7, VALUE(SUBSTITUTE(H6,"時",""))<=18), "①", IF(AND(VALUE(SUBSTITUTE(F6,"時",""))>=0, VALUE(SUBSTITUTE(F6,"時",""))<=6, VALUE(SUBSTITUTE(H6,"時",""))>=7, VALUE(SUBSTITUTE(H6,"時",""))<=18), "②", IF(AND(VALUE(SUBSTITUTE(F6,"時",""))>=7, VALUE(SUBSTITUTE(F6,"時",""))<=18, VALUE(SUBSTITUTE(H6,"時",""))>=19, VALUE(SUBSTITUTE(H6,"時",""))<=24), "③", IF(AND(VALUE(SUBSTITUTE(F6,"時",""))>=19, VALUE(SUBSTITUTE(F6,"時",""))<=24, VALUE(SUBSTITUTE(H6,"時",""))>=19, VALUE(SUBSTITUTE(H6,"時",""))<=24), "④", IF(AND(VALUE(SUBSTITUTE(F6,"時",""))>=0, VALUE(SUBSTITUTE(F6,"時",""))<=6, VALUE(SUBSTITUTE(H6,"時",""))>=0, VALUE(SUBSTITUTE(H6,"時",""))<=6), "⑤", ""))))) -> ③ | K6: =IF(E6<>"","土日祝",IF(OR(D5="土曜日",D5="日曜日"),"土日祝","")) -> 土日祝 | L6: =TIME(VALUE(SUBSTITUTE(F6,"時","")), VALUE(SUBSTITUTE(G6,"分","")), 0) -> 18:50:00 | M6: =TIME(VALUE(SUBSTITUTE(H6,"時","")), VALUE(SUBSTITUTE(I6,"分","")), 0) -> 20:30:00 | N6: 100 | O6: 40 | P6: 60 | Q6: 1 | R6: 1 | AD6: 5時 | AE6: 5分
AD9: 7時 | AE9: 7分
AD10: 8時 | AE10: 8分
AD11: 9時 | AE11: 9分
AD12: 10時 | AE12: 10分
AD13: 11時 | AE13: 11分
AD14: 12時 | AE14: 12分
AD15: 13時 | AE15: 13分
AD16: 14時 | AE16: 14分
AD17: 15時 | AE17: 15分
AD18: 16時 | AE18: 16分
AD19: 17時 | AE19: 17分
AD20: 18時 | AE20: 18分
AD21: 19時 | AE21: 19分
AD22: 20時 | AE22: 20分
AD23: 21時 | AE23: 21分
AD24: 22時 | AE24: 22分
AD25: 23時 | AE25: 23分
AD26: 24時 | AE26: 24分
AE27: 25分
AE28: 26分
AE29: 27分
AE30: 28分
AE31: 29分
AE32: 30分
AE33: 31分
AE34: 32分
AE35: 33分
AE36: 34分
AE37: 35分
AE38: 36分
AE39: 37分
AE40: 38分
AE41: 39分
AE42: 40分
AE43: 41分
AE44: 42分
AE45: 43分
AE46: 44分
AE47: 45分
AE48: 46分
AE49: 47分
AE50: 48分
AE51: 49分
AE52: 50分
AE53: 51分
AE54: 52分
AE55: 53分
AE56: 54分
AE57: 55分
AE58: 56分
AE59: 57分
AE60: 58分
AE61: 59分

Sheet Sheet1 (hidden)

Sheet 祝日判定マスタ (hidden)
A1: 2026-01-01 | B1: 元日 | F1: 0時 | G1: 0分
A2: 2026-01-12 | B2: 成人の日 | F2: 1時 | G2: 1分
A3: 2026-02-11 | B3: 建国記念の日 | F3: 2時 | G3: 2分
A4: 2026-02-23 | B4: 天皇誕生日 | F4: 3時 | G4: 3分
A5: 2026-03-20 | B5: 春分の日 | F5: 4時 | G5: 4分
A6: 2026-04-29 | B6: 昭和の日 | F6: 5時 | G6: 5分
A7: 2026-05-03 | B7: 憲法記念日 | F7: 6時 | G7: 6分
A8: 2026-05-04 | B8: みどりの日 | F8: 7時 | G8: 7分
A9: 2026-05-05 | B9: こどもの日 | F9: 8時 | G9: 8分
A10: 2026-05-06 | B10: 振替休日 | C10: 祝日法第3条第2項による休日 | F10: 9時 | G10: 9分
A11: 2026-07-20 | B11: 海の日 | F11: 10時 | G11: 10分
A12: 2026-08-11 | B12: 山の日 | F12: 11時 | G12: 11分
A13: 2026-09-21 | B13: 敬老の日 | F13: 12時 | G13: 12分
A14: 2026-09-22 | B14: 国民の休日 | C14: 祝日法第3条第3項による休日 | F14: 13時 | G14: 13分
A15: 2026-09-23 | B15: 秋分の日 | F15: 14時 | G15: 14分
A16: 2026-10-12 | B16: スポーツの日 | F16: 15時 | G16: 15分
A17: 2026-11-03 | B17: 文化の日 | F17: 16時 | G17: 16分
A18: 2026-11-23 | B18: 勤労感謝の日 | F18: 17時 | G18: 17分
A19: 2027-01-01 | B19: 元日 | F19: 18時 | G19: 18分
A20: 2027-01-11 | B20: 成人の日 | F20: 19時 | G20: 19分
A21: 2027-02-11 | B21: 建国記念の日 | F21: 20時 | G21: 20分
A22: 2027-02-23 | B22: 天皇誕生日 | F22: 21時 | G22: 21分
A23: 2027-03-21 | B23: 春分の日 | F23: 22時 | G23: 22分
A24: 2027-03-22 | B24: 振替休日 | C24: 祝日法第3条第2項による休日 | F24: 23時 | G24: 23分
A25: 2027-04-29 | B25: 昭和の日 | G25: 24分
A26: 2027-05-03 | B26: 憲法記念日 | G26: 25分
A27: 2027-05-04 | B27: みどりの日 | G27: 26分
A28: 2027-05-05 | B28: こどもの日 | G28: 27分
A29: 2027-07-19 | B29: 海の日 | G29: 28分
A30: 2027-08-11 | B30: 山の日 | G30: 29分
A31: 2027-09-20 | B31: 敬老の日 | G31: 30分
A32: 2027-09-23 | B32: 秋分の日 | G32: 31分
A33: 2027-10-11 | B33: スポーツの日 | G33: 32分
A34: 2027-11-03 | B34: 文化の日 | G34: 33分
A35: 2027-11-23 | B35: 勤労感謝の日 | G35: 34分
G36: 35分
G37: 36分
G38: 37分
G39: 38分
G40: 39分
G41: 40分
G42: 41分
G43: 42分
G44: 43分
G45: 44分
G46: 45分
G47: 46分
G48: 47分
G49: 48分
G50: 49分
G51: 50分
G52: 51分
G53: 52分
G54: 53分
G55: 54分
G56: 55分
G57: 56分
G58: 57分
G59: 58分
G60: 59分

Sheet 単月(いじる用） (✕✕✕) (hidden)
C2: ①要入力 | F2: ②要入力 | H2: ③要入力 | J2: 非表示！ | K2: 非表示！ | L2: 非表示！ | M2: 非表示！ | N2: 非表示！ | O2: 非表示！ | P2: 非表示！ | Q2: 非表示！ | R2: 非表示！
B3: No | C3: 日付 | D3: 曜日 | E3: 祝日 | F3: 開始時刻 | H3: 終了時刻 | J3: 時間外判別 | K3: 土日祝判定 | L3: 開始時刻 | M3: 終了時刻 | N3: 全分数 | O3: 時間外(m) | P3: 通常(m) | Q3: 時間外(h)ベース | R3: 通常(h)ベース | S3: A 平日 (時間内) | T3: B 土日祝 | U3: C 時間外 | W3: A 平日 (時間内) | X3: B 土日祝 | Y3: C 時間外
B4: 例 | C4: （例）1月１日 | D4: 木曜日 | E4: 元日 | F4: 9時 | G4: 0分 | H4: 12時 | I4: 0分 | J4: =IFERROR(IF(AND(VALUE(SUBSTITUTE(F4,"時",""))>=7, VALUE(SUBSTITUTE(F4,"時",""))<=18, VALUE(SUBSTITUTE(H4,"時",""))>=7, VALUE(SUBSTITUTE(H4,"時",""))<=18), "①", IF(AND(VALUE(SUBSTITUTE(F4,"時",""))>=0, VALUE(SUBSTITUTE(F4,"時",""))<=6, VALUE(SUBSTITUTE(H4,"時",""))>=7, VALUE(SUBSTITUTE(H4,"時",""))<=18), "②", IF(AND(VALUE(SUBSTITUTE(F4,"時",""))>=7, VALUE(SUBSTITUTE(F4,"時",""))<=18, VALUE(SUBSTITUTE(H4,"時",""))>=19, VALUE(SUBSTITUTE(H4,"時",""))<=24), "③", IF(AND(VALUE(SUBSTITUTE(F4,"時",""))>=19, VALUE(SUBSTITUTE(F4,"時",""))<=24, VALUE(SUBSTITUTE(H4,"時",""))>=19, VALUE(SUBSTITUTE(H4,"時",""))<=24), "④", IF(AND(VALUE(SUBSTITUTE(F4,"時",""))>=0, VALUE(SUBSTITUTE(F4,"時",""))<=6, VALUE(SUBSTITUTE(H4,"時",""))>=0, VALUE(SUBSTITUTE(H4,"時",""))<=6), "⑤", ""))))),"") -> ① | K4: =IF(E4<>"","土日祝",IF(OR(D4="土曜日",D4="日曜日"),"土日祝","")) -> 土日祝 | L4: =IFERROR(TIME(VALUE(SUBSTITUTE(F4,"時","")), VALUE(SUBSTITUTE(G4,"分","")), 0),"") -> 09:00:00 | M4: =IFERROR(TIME(VALUE(SUBSTITUTE(H4,"時","")),VALUE(SUBSTITUTE(I4,"分","")),0),"") -> 12:00:00 | N4: =IF(OR(M4="",L4=""),"", (M4 - L4) * 1440) -> 180 | O4: =IFERROR(ROUND( IF( L4>=TIME(7,0,0), 0, MAX( 0, (MIN( M4, L4 + CEILING((TIME(7,0,0)-L4)*24,1)/24 ) - L4 ) * 1440 ) ) + IF( M4<=TIME(19,0,0), 0, MAX( 0, (M4 - MAX( L4 + CEILING((TIME(19,0,0)-L4)*24,1)/24, TIME(19,0,0) ) ) * 1440 ) ), 10),"") -> 0 | P4: =IF(OR(M4="",L4="",O4=""),"", ROUND((M4 - L4) * 1440 - O4, 10) ) -> 180 | Q4: =IF(O4="","", _xlfn.LET( _xlpm.m, ROUND(O4,0), _xlpm.h, QUOTIENT(_xlpm.m,60), _xlpm.r, MOD(_xlpm.m,60), _xlpm.h + IF(_xlpm.r=0,0,IF(_xlpm.r<=30,0.5,1)) ) ) -> 0 | R4: =IF(P4="","", _xlfn.LET( _xlpm.m, ROUND(P4,0), INT(_xlpm.m/60) + IF(MOD(_xlpm.m,60)=0,0,IF(MOD(_xlpm.m,60)<=30,0.5,1)) ) ) -> 3 | S4: =IF(K4="",R4,"") ->  | T4: =IFERROR(IF(K4="", "", R4),"") -> 3 | W4: =SUM(S5:S108) -> 16.5 | X4: =SUM(T5:T108) -> 0 | Y4: =SUM(U5:U108) -> 0
B5: =ROW()-4 -> 1 | C5: 2026-08-03 | D5: =IF(C5="","",TEXT(C5,"aaaa")) -> 月曜日 | E5: =IFERROR(VLOOKUP(C5,祝日判定マスタ!$A:$B,2,FALSE),"") ->  | F5: 9時 | G5: 1分 | H5: 13時 | I5: 1分 | J5: ① | L5: 09:01:00 | M5: 13:01:00 | N5: 240 | O5: 0 | P5: 240 | Q5: 0 | R5: 4 | S5: 4 | U5: =IF(K5="",Q5,IF(K5<>"",Q5)) -> 0
B6: =ROW()-4 -> 2 | C6: 2026-08-18 | D6: 火曜日 | E6: =IFERROR(VLOOKUP(C6,祝日判定マスタ!$A:$B,2,FALSE),"") ->  | F6: 9時 | G6: 2分 | H6: 14時 | I6: 2分 | J6: ① | L6: 09:02:00 | M6: 14:02:00 | N6: 300 | O6: 0 | P6: 300 | Q6: 0 | R6: 5 | S6: 5 | U6: 0
B7: =ROW()-4 -> 3 | C7: 2026-09-14 | D7: 月曜日 | E7: =IFERROR(VLOOKUP(C7,祝日判定マスタ!$A:$B,2,FALSE),"") ->  | F7: 9時 | G7: 3分 | H7: 15時 | I7: 3分 | J7: ① | L7: 09:03:00 | M7: 15:03:00 | N7: 360 | O7: 0 | P7: 360 | Q7: 0 | R7: 6 | S7: 6 | U7: 0
B8: =ROW()-4 -> 4 | C8: 2026-08-28 | D8: 金曜日 | E8: =IFERROR(VLOOKUP(C8,祝日判定マスタ!$A:$B,2,FALSE),"") ->  | F8: 17時 | G8: 1分 | H8: 18時 | I8: 6分 | J8: ① | L8: 17:01:00 | M8: 18:06:00 | N8: 65 | O8: 0 | P8: 65 | Q8: 0 | R8: 1.5 | S8: 1.5 | U8: 0
